[Event "Leca Open 2022"]
[Site "Leca da Palmeira"]
[Date "2022.08.03"]
[Round "6.4"]
[White "Rego, Pedro Filipe"]
[Black "Motylev, Alexander"]
[Result "0-1"]
[ECO "D45"]
[WhiteElo "2251"]
[BlackElo "2632"]
[Annotator "TA"]
[PlyCount "46"]
[EventDate "2022.08.02"]
[EventType "swiss"]
[EventCountry "POR"]
[SourceTitle "playchess.com"]
[Source "ChessBase"]
[SourceQuality "1"]
[TimeControl "5400+30"]

{[%evp 10,46,17,-12,-6,-13,-3,-8,-10,-8,-21,-19,-20,-49,-34,-26,-33,-45,-32,-51,-45,-43,-52,-58,-22,-18,-22,-15,-21,-10,-12,-96,-84,-79,-54,-252,-280,-1866,-820]} 1. d4 d5 2. c4 e6 3. Nf3 Nf6 4. Nc3 c6 5. e3 Nbd7 6. Qb3 Bd6 {D45: Semi-Slav: 5 e3.} 7. Be2 O-O 8. O-O Qe7 $5 {[%mdl 4] The position is equal. Leaves trodden paths.} 9. Rd1 dxc4 10. Qxc4 e5 11. dxe5 Nxe5 12. Nxe5 Bxe5 13. Bd2 {[#]} Re8 $146 ({Predecessor:} 13... Be6 14. Qh4 Nd5 15. Qxe7 Nxe7 16. Na4 b6 17. Bc3 Bxc3 18. Nxc3 Rfd8 19. f3 Nd5 20. Nxd5 Rxd5 21. Rxd5 Bxd5 {½-½ (26) Boleslavsky,I-Platonov,I Kiev 1958}) 14. Qh4 Bf5 15. Rac1 h6 16. Be1 b5 17. Bf3 Rac8 18. Ne2 c5 {Inhibits Nd4.} 19. Bc3 Red8 20. g4 (20. Bxe5 $11 Qxe5 21. Qf4 Qxf4 22. Nxf4) 20... Bd3 $17 {Black is more active.} 21. Nf4 {[#] aiming for Bxe5.} Bxc3 22. Rxc3 ({Better is} 22. Nxd3 $15 Ba5 23. Nf4) 22... Be4 $19 23. Bxe4 $2 (23. Qg3 Rxd1+ 24. Bxd1) 23... Rxd1+ {Weighted Error Value: White=0.70/Black=0.05 (flawless)} 0-1

[Event "Leca Open 2022"]
[Site "Leca da Palmeira"]
[Date "2022.08.03"]
[Round "6.5"]
[White "Perez Candelario, Manuel"]
[Black "Balaji, Aaravamudhan"]
[Result "1/2-1/2"]
[ECO "C78"]
[WhiteElo "2578"]
[BlackElo "2228"]
[Annotator "TA"]
[PlyCount "38"]
[EventDate "2022.08.02"]
[EventType "swiss"]
[EventCountry "POR"]
[SourceTitle "playchess.com"]
[Source "ChessBase"]
[SourceQuality "1"]
[TimeControl "5400+30"]

{[%evp 17,38,31,29,0,0,0,0,0,0,0,0,0,0,-12,30,25,26,28,32,30,9,-70,-60]} 1. e4 {[%emt 0:00:02]} e5 {[%emt 0:00:07]} 2. Nf3 {[%emt 0:00:04]} Nc6 {[%emt 0:00:03]} 3. Bb5 {[%emt 0:00:05][%cal Bf1b5,Bb5a4,Ba4b3][%mdl 32]} a6 {[%emt 0:00:04]} 4. Ba4 {[%emt 0:00:03]} Nf6 {[%emt 0:00:05]} 5. O-O {[%emt 0:00:05]} b5 {[%emt 0:00:02]} 6. Bb3 {[%emt 0:00:04]} Bc5 {[%emt 0:00:04]} 7. a4 {[%emt 0:00:25]} Rb8 {[%emt 0:00:18]} 8. c3 {[%emt 0:00:22]} d6 {[%emt 0:00:11]} 9. d4 {[%emt 0:00:18]} Bb6 {[%emt 0:00:05]} 10. a5 {[%emt 0:00:43] C78: Ruy Lopez: Archangelsk and Möller Defences.} Ba7 {[%emt 0:01:25]} (10... Nxa5 11. Rxa5 Bxa5 12. dxe5) (10... Bxa5 $2 11. Bd5 (11. d5 Ne7 $18) 11... Nxd5 12. exd5 $18) 11. Be3 {[%emt 0:00:29]} Bg4 {[%emt 0:03:57]} 12. Nbd2 {[%emt 0:01:21] The position is equal.} exd4 {[%emt 0:08:32]} 13. cxd4 {[%emt 0:00:07] Hoping for Qc1.} O-O $1 {[%emt 0:01:44][%cal Oc6d4]} 14. h3 {[%emt 0:03:31]} Bh5 {[%emt 0:03:05]} ({Don't play} 14... Bxf3 15. Nxf3 d5 16. e5 $16) 15. Re1 {[%emt 0:01:35]} Bxd4 {[%emt 0:07:22] [#]} 16. Nxd4 {[%emt 0:03:10]} Nxd4 {[%emt 0:21:43] [#]} 17. f3 $146 {[%emt 0:01:33]} ({Predecessor:} 17. g4 Nxb3 18. Qxb3 Bg6 19. Bg5 h6 20. Bh4 Bh7 21. f4 g5 22. fxg5 Nd7 23. Nf3 {½-½ (55) Esipenko,A (2720)-Shirov,A (2659) Riga 2021}) 17... Nxb3 {[%emt 0:07:55]} 18. Nxb3 {[%emt 0:00:37]} Nxe4 {[%emt 0:12:20]} 19. g4 {[%emt 0:11:33] [#]} ({White should play} 19. Nd4 $1 $11) 19... Qh4 $1 {[%emt 0:01:38] Weighted Error Value: White=0.16 (very precise) /Black=0.03 (flawless)} 1/2-1/2

[Event "Leca Open 2022"]
[Site "Leca da Palmeira"]
[Date "2022.08.03"]
[Round "6.6"]
[White "Sismeiro, Miguel"]
[Black "Spraggett, Kevin"]
[Result "1/2-1/2"]
[ECO "B30"]
[WhiteElo "2162"]
[BlackElo "2487"]
[Annotator "TA"]
[PlyCount "66"]
[EventDate "2022.08.02"]
[EventType "swiss"]
[EventCountry "POR"]
[SourceTitle "playchess.com"]
[Source "ChessBase"]
[SourceQuality "1"]
[TimeControl "5400+30"]

{[%evp 10,66,29,18,36,27,40,28,34,14,39,-17,80,79,79,32,54,0,0,-5,0,0,31,24,68,27,50,54,92,50,58,60,59,63,67,29,44,27,64,26,36,52,46,21,20,-78,50,37,37,33,39,24,45,50,54,48,61,64,87]} 1. e4 c5 2. Nf3 Nc6 3. Bb5 e6 4. O-O Nge7 5. Re1 Ng6 6. c3 Be7 {B30: Sicilian: 2...Nc6 3 Bb5, lines without ...g6.} (6... d5 {with more complications.} 7. exd5 Qxd5 8. d4 cxd4 9. Nxd4 Bd7) 7. d4 cxd4 8. cxd4 d5 {White has an edge.} 9. e5 {[#]} f6 $146 ({Predecessor:} 9... O-O 10. g3 Bd7 11. Nc3 Re8 12. h4 Nf8 13. Be3 Na5 14. Bd3 Rc8 15. Qe2 Nc4 {1-0 (44) Muzychuk,A (2537)-Mikhaylova,I (2288) Moscow 2019}) 10. h4 (10. exf6 $14 Bxf6 11. b3) 10... f5 (10... fxe5 $1 $11 {keeps the balance.} 11. h5 (11. Nxe5 Ngxe5 12. Rxe5 Bd6 $15) 11... e4 12. hxg6 exf3) 11. h5 $16 Nf8 12. Be3 {White is more active.} (12. Nc3 $16) 12... g5 $1 $14 13. hxg6 (13. g4 $14) 13... hxg6 $11 14. Qc1 Bd7 15. Nc3 Rc8 16. Qd2 $36 {[%mdl 2048] White has good play.} a6 17. Bd3 (17. Bxc6 $5 bxc6 18. g3 $14) 17... Nh7 18. g4 Kf7 19. g5 ({Resist} 19. Bh6 Qb6 $14) 19... Kg7 {[%cal Oh7g5]} 20. Kg2 Qa5 21. a3 Nd8 22. Rh1 {[%cal Be1h1,Bh1h3,Bh3g3][%mdl 32]} Nf7 23. Rh3 Rcg8 24. Rah1 Qd8 {[%cal Rh7g5]} 25. Rg3 Nf8 26. Rxh8 Rxh8 27. Ng1 {[#]} (27. Qc1 $11) 27... b5 ({Better is} 27... Nxe5 $1 $17 28. dxe5 d4 29. Bxd4 Bc6+ 30. Be4 fxe4) 28. f4 Qb6 29. Rh3 Rxh3 30. Kxh3 a5 31. Qc2 {White is slightly better.} Bc6 32. Nf3 Nd7 33. a4 b4 {Weighted Error Value: White=0.23 (precise) /Black=0.21 (precise)} 1/2-1/2

[Event "Leca Open 2022"]
[Site "Leca da Palmeira"]
[Date "2022.08.03"]
[Round "6.7"]
[White "Pierrot, Facundo"]
[Black "Rodriguez Lopez, Rafael"]
[Result "1/2-1/2"]
[ECO "E68"]
[WhiteElo "2371"]
[BlackElo "2172"]
[Annotator "TA"]
[PlyCount "93"]
[EventDate "2022.08.02"]
[EventType "swiss"]
[EventCountry "POR"]
[SourceTitle "playchess.com"]
[Source "ChessBase"]
[SourceQuality "1"]
[TimeControl "5400+30"]

{[%evp 23,93,30,27,26,27,-20,-21,-18,-14,-11,-16,-41,0,-28,-20,-33,-25,-58,0,-6,-9,0,0,0,0,0,0,0,0,0,110,122,108,109,109,109,109,106,145,0,0,0,0,0,0,0,0,0,0,2,4,0,0,0,0,0,0,0,0,0,0,0,0,0,0,0,0,0,0,0,0,0]} 1. d4 Nf6 2. Nf3 g6 3. g3 Bg7 4. Bg2 O-O 5. c4 d6 6. O-O Nbd7 7. Nc3 e5 8. e4 exd4 9. Nxd4 Re8 10. Re1 Nc5 11. h3 Bd7 12. Bf4 h6 13. b3 {E68: King's Indian: Fianchetto: 6...Nbd7 7 0-0 e5 8 e4.} a5 {[#]} 14. Rc1 $146 (14. Rb1 {was preferrable.}) ({Predecessor:} 14. Qc2 Nfxe4 15. Nxe4 Bxd4 16. Rad1 Nxe4 17. Rxd4 Ng5 18. Rxe8+ Qxe8 19. Bxg5 hxg5 20. Bxb7 Rb8 {0-1 (39) Pavlov,S (2480)-Grischuk,A (2777) Chess.com INT 2020}) 14... g5 $11 15. Be3 Nfxe4 16. Nxe4 Nxe4 17. g4 c6 {[%cal Oa5a4]} 18. Qc2 d5 19. cxd5 cxd5 20. Qc7 Qxc7 ({Black should try} 20... Rc8 $1 $15 21. Qxd8 Rexd8) 21. Rxc7 Rad8 22. Rd1 Bc8 23. Nb5 Be5 24. Rc2 {And now Bb6 would win.} Be6 25. Nc7 Rc8 26. Rdc1 Rf8 (26... Bxc7 $11 {keeps the balance.} 27. Rxc7 f5) 27. Nxe6 $16 (27. Nxd5 {feels hotter.} Rxc2 28. Ne7+ Kg7 29. Rxc2 Nd6 30. Rc5) 27... Rxc2 28. Rxc2 fxe6 29. Bxe4 dxe4 {[%mdl 4096] Endgame KRB-KRB} 30. Rc5 {[%csl LRa5,LRe5]} Bf4 31. Rxa5 ({White has to play} 31. Bxf4 $16 Rxf4 32. Rxa5) 31... Bxe3 $11 {The position is equal.} 32. fxe3 $16 {KR-KR} Rf3 {[%csl LRe3,LRh3]} 33. Rb5 Rxe3 34. Rxb7 {Black must now prevent a4.} Rxh3 35. a4 e3 {[%cal Oh3h1] [#] Strongly threatening ...Rh1+!} 36. Kf1 Rh2 37. a5 Ra2 $1 38. b4 {aiming for Re7.} h5 $1 39. gxh5 g4 {[#] Hoping for ...g3.} 40. h6 Kh8 41. Rg7 Rf2+ $1 42. Ke1 Rf4 $1 43. a6 Rxb4 44. a7 Ra4 45. Ke2 Ra2+ 46. Kxe3 {White threatens Kf4 and mate.} g3 $1 47. Rxg3 {Weighted Error Value: White=0.12 (very precise) /Black=0.11 (very precise)} 1/2-1/2

[Event "Leca Open 2022"]
[Site "Leca da Palmeira"]
[Date "2022.08.03"]
[Round "6.8"]
[White "Pandey Srishti"]
[Black "Panesar Vedant"]
[Result "1/2-1/2"]
[ECO "B97"]
[WhiteElo "2101"]
[BlackElo "2318"]
[Annotator "TA"]
[PlyCount "57"]
[EventDate "2022.08.02"]
[EventType "swiss"]
[EventCountry "POR"]
[SourceTitle "playchess.com"]
[Source "ChessBase"]
[SourceQuality "1"]
[TimeControl "5400+30"]

{[%evp 36,57,0,0,0,0,0,0,0,0,0,0,0,0,0,0,0,0,0,0,0,0,0,0]} 1. e4 c5 2. Nf3 d6 3. d4 Nf6 4. Nc3 cxd4 5. Nxd4 a6 6. Bg5 e6 7. f4 Qb6 8. Qd2 Qxb2 9. Rb1 Qa3 10. f5 Nc6 11. fxe6 fxe6 12. Nxc6 bxc6 13. e5 dxe5 14. Bxf6 gxf6 15. Ne4 Qxa2 16. Rd1 Be7 17. Be2 O-O 18. O-O {[%cal Bh1f1,Bf1f3,Bf3h3,Bh3d3,Bd3d8][%mdl 32]} f5 19. Qh6 {The position is equal.} Qxc2 {B97: Sicilian Najdorf: Poisoned Pawn.} (19... fxe4 $2 20. Rxf8+ Bxf8 21. Qg5+ Kh8 22. Qf6+ Kg8 23. Bh5 $18) 20. Rf3 {[#] Rg3+ would kill now.} f4 {Prevents Rg3+.} ({But not} 20... Qxe2 21. Rg3+ Qg4 22. Rxg4+ fxg4 23. Qh5 $16) 21. Rh3 $1 {[%csl Gh3][%cal Rh6h7] Really sharp!} Rf7 22. Rhd3 $1 {[%cal Od3d8] Strongly threatening Rd8+!} Qxe2 23. Rd8+ $1 Rf8 24. Nf6+ Kf7 {[#]} 25. Qxh7+ $146 ({Predecessor:} 25. Nh5 Bxd8 26. Qxh7+ Ke8 27. Qg6+ Ke7 28. Qg5+ Kf7 29. Qg7+ Ke8 30. Qg6+ {½-½ (30) Watson,W (2470)-King,D (2515) London 1990}) 25... Kxf6 26. Qh6+ Kf7 27. Qh7+ Kf6 28. Qh6+ Kf7 29. Qh7+ {An interesting draw.  Weighted Error Value: White=0.00 (flawless) /Black=0.00 (flawless)} 1/2-1/2

[Event "Leca Open 2022"]
[Site "Leca da Palmeira"]
[Date "2022.08.03"]
[Round "6.9"]
[White "Modi, Shyam Jagdish"]
[Black "Stella, Andrea"]
[Result "0-1"]
[ECO "E04"]
[WhiteElo "2138"]
[BlackElo "2443"]
[Annotator "TA"]
[PlyCount "100"]
[EventDate "2022.08.02"]
[EventType "swiss"]
[EventCountry "POR"]
[SourceTitle "playchess.com"]
[Source "ChessBase"]
[SourceQuality "1"]
[TimeControl "5400+30"]

{[%evp 11,100,0,0,-2,-12,-10,0,4,4,-5,4,0,16,0,26,12,11,10,25,9,63,-78,0,-12,0,0,0,0,0,0,0,0,36,39,25,0,47,52,48,21,19,-52,0,0,16,-47,0,0,73,12,14,0,84,54,67,0,125,0,76,-147,-144,-154,-170,-452,-441,-450,-450,-439,-441,-452,-443,-567,-579,-606,-618,-694,-710,-795,-795,-954,-1262,-1260,-1250,-1175,-1190,-2981,-2395,-3527,-3469,-2465,-2470]} 1. d4 {[%emt 0:00:05]} Nf6 {[%emt 0:05:42]} 2. c4 {[%emt 0:01:19]} e6 {[%emt 0:00:03]} 3. g3 {[%emt 0:00:04]} d5 {[%emt 0:00:04]} 4. Bg2 {[%emt 0:00:20]} dxc4 {[%emt 0:00:04]} 5. Nf3 {[%emt 0:00:06]} c6 {[%emt 0:00:06]} 6. O-O {[%emt 0:03:19]} b5 {[%emt 0:00:46]} 7. a4 {[%emt 0:08:50] E04: Open Catalan: 5 Nf3.} Bb7 {[%emt 0:01:41]} 8. Ne5 {[%emt 0:04:53] axb5 is the strong threat.} a6 {[%emt 0:01:10]} 9. b3 {[%emt 0:05:31] The position is equal.} cxb3 {[%emt 0:01:07]} 10. Bb2 {[%emt 0:00:42] 10.Qxb3 deserves study.} Be7 {[%emt 0:04:38]} 11. Nd2 {[%emt 0:01:04]} O-O {[%emt 0:15:29]} 12. Qxb3 {[%emt 0:04:11]} (12. axb5 {seems wilder.} axb5 13. Rxa8 Bxa8 14. Qa1) 12... Nfd7 {[%emt 0:09:23] Strongly threatening ...Nxe5.} 13. Nd3 {[%emt 0:19:22][%mdl 1024] [#] White has compensation.} Ra7 $146 {[%emt 0:15:14]} ({Predecessor:} 13... Qb6 14. Rfc1 Rc8 15. Ne4 a5 16. Nec5 Nxc5 17. Nxc5 Bxc5 18. dxc5 Qc7 19. axb5 cxb5 20. Qxb5 Bxg2 21. Kxg2 {0-1 (65) Kozlov,O (2294)-Molina,R (2400) Chess.com INT 2022}) 14. Rfc1 {[%emt 0:18:08]} Nb6 {[%emt 0:03:13]} 15. a5 $1 {[%emt 0:00:43]} Na4 {[%emt 0:00:48]} (15... N6d7 $11) 16. Bc3 {[%emt 0:05:25]} (16. Rxa4 $14 {keeps the upper hand.} bxa4 17. Qxa4) 16... Nd7 {[%emt 0:16:02]} ({Better is} 16... c5 $17 {White must now prevent ...c4.} 17. Nxc5 Nxc5 18. dxc5 Bxc5) 17. Bb4 $11 {[%emt 0:04:32]} e5 {[%emt 0:05:09]} 18. Bxc6 {[%emt 0:08:50]} (18. Nxe5 $2 Bxb4 19. Qxb4 c5 $19) 18... Bxc6 {[%emt 0:00:48]} 19. Rxc6 {[%emt 0:00:02]} exd4 {[%emt 0:00:10][%cal Oa4c3]} 20. Nf3 {[%emt 0:02:15]} Nb8 {[%emt 0:10:29]} 21. Rc2 {[%emt 0:00:37]} Re8 {[%emt 0:01:50]} 22. Rac1 {[%emt 0:01:52]} Bf6 {[%emt 0:01:19] Prevents Nde5.} 23. Kf1 {[%emt 0:02:59][%cal Od3e5]} Qd7 {[%emt 0:01:25]} (23... Nd7 $11) 24. Nf4 $1 $14 {[%emt 0:01:04]} Rd8 {[%emt 0:03:49]} 25. Kg1 {[%emt 0:01:46]} h6 {[%emt 0:01:28]} 26. Kf1 {[%emt 0:00:43]} (26. h4 $11) 26... Rb7 {[%emt 0:00:48]} (26... g5 $15 27. Nd3 Re8) 27. Kg1 {[%emt 0:00:04]} Ra7 {[%emt 0:00:27]} 28. Kf1 {[%emt 0:00:01]} (28. h4 $11) 28... Rb7 {[%emt 0:00:36]} (28... g5 $15 {might be stronger.} 29. Nd3 Re8) 29. Kg1 {[%emt 0:00:27]} Kh7 {[%emt 0:00:07]} (29... Ra7 $11) 30. Qd3+ {[%emt 0:00:03]} (30. Nh5 $16) 30... g6 $1 $11 {[%emt 0:00:19]} 31. h4 {[%emt 0:00:28] And now h5 would win.} Kg7 {[%emt 0:00:15]} (31... Qe8 $11 {remains equal.}) 32. Kg2 {[%emt 0:00:52]} Re8 {[%emt 0:01:11]} 33. Kf1 {[%emt 0:00:33]} (33. Bc5 $14) 33... Rd8 {[%emt 0:00:32] [#]} (33... Kh8 $11 {keeps the balance.}) 34. Kg2 {[%emt 0:00:02]} ({White should play} 34. h5 $1 $16 {[%cal Rh5g6]} Qf5 35. hxg6 Qxd3 36. Nxd3 (36. exd3 Nc3 $16)) 34... Qe8 {[%emt 0:00:32] [#]} (34... Re8 $1 $11) 35. Kf1 $2 {[%emt 0:00:22]} (35. Rc7 Rxc7 36. Rxc7 Rd7 37. Rxd7 Qxd7 $11) (35. h5 $1 $16 {Threatens to win with Rc7.} Nc3 36. hxg6 fxg6 37. e3) 35... Nc3 $1 $17 {[%emt 0:00:25] White is on the road to losing.} 36. Bc5 {[%emt 0:03:07][%cal Rc5d4]} Nc6 {[%emt 0:00:13][%cal Bb8c6,Bc6b4,Bb4c2][%mdl 32]} 37. Bb6 $2 {[%emt 0:00:48] [#]} (37. Nxd4 Nxd4 38. Rxc3) 37... Rxb6 $1 $19 {[%emt 0:00:32][%mdl 512] Black is clearly winning.} 38. axb6 {[%cal Of3d4]} Nb4 $1 {[%emt 0:00:04][%csl LRc2,LRd3]} 39. Qd2 {[%emt 0:00:44]} Nxc2 {[%emt 0:00:04]} 40. Rxc2 {[%emt 0:00:40]} Qc6 {[%emt 0:00:29]} 41. Qd3 {[%emt 0:01:14]} Qxb6 {[%emt 0:00:16]} 42. Rb2 {[%emt 0:01:07]} Qc6 {[%emt 0:00:27]} 43. Qc2 {[%emt 0:01:15]} a5 {[%emt 0:00:18][%cal Ba6a5,Ba5a4,Ba4a3][%mdl 32]} 44. Kg1 {[%emt 0:01:08]} a4 {[%emt 0:00:31]} 45. h5 {[%emt 0:00:11]} g5 {[%emt 0:00:56]} 46. Nd3 {[%emt 0:00:20]} a3 {[%emt 0:01:26]} 47. Ra2 {[%emt 0:00:06]} Re8 {[%emt 0:00:41]} 48. Nc1 {[%emt 0:01:19] [#]} Nxe2+ $1 {[%emt 0:00:46][%mdl 512]} 49. Nxe2 {[%emt 0:00:24]} (49. Kg2 Qxc2) 49... Qxc2 {[%emt 0:00:26][%mdl 64] Remove Defender} 50. Rxc2 {[%emt 0:00:09]} d3 {[%emt 0:00:03][%csl LRc2,LRe2] Weighted Error Value: White=0.48/Black=0.26 (precise)} 0-1

[Event "Leca Open 2022"]
[Site "Leca da Palmeira"]
[Date "2022.08.03"]
[Round "6.11"]
[White "Monteiro, Paulo Alexandre G"]
[Black "Martins, Bruno Andre Leite"]
[Result "0-1"]
[ECO "E46"]
[WhiteElo "1980"]
[BlackElo "2331"]
[Annotator "TA"]
[PlyCount "74"]
[EventDate "2022.08.02"]
[EventType "swiss"]
[EventCountry "POR"]
[SourceTitle "playchess.com"]
[Source "ChessBase"]
[SourceQuality "1"]
[TimeControl "5400+30"]

{[%evp 12,74,7,-22,-24,-17,-11,-23,-12,-29,-22,-30,-17,-37,-43,-43,8,0,13,6,6,8,0,0,24,-4,1,17,0,-20,-9,-34,-37,-30,-40,-101,-54,-133,-155,-170,-88,-329,-322,-342,-335,-277,-258,-232,-196,-1172,-1166,-1157,-1147,-29991,-29992,-29992,-29993,-29993,-29991,-29993,-29994,-29996,-29995,-29995,-29996]} 1. d4 Nf6 2. c4 e6 3. Nc3 Bb4 4. e3 O-O 5. Nge2 Re8 6. a3 Bf8 7. g3 d5 {Inhibits e4. E46: Nimzo-Indian: Rubinstein: 4 e3 0-0 5 Ne2 without early Bd3.} 8. cxd5 exd5 9. Bg2 c6 {Black has an edge.} 10. O-O Bf5 11. Nf4 Nbd7 12. f3 {[#]} h6 $146 ({Predecessor:} 12... Bd6 13. g4 Bg6 14. Nxg6 hxg6 15. e4 dxe4 16. fxe4 Qb6 17. Kh1 Rad8 18. b4 Bb8 {0-1 (53) Brizuela Abreu,R (2361)-Vazquez,G (2527) Chess.com INT 2020}) 13. Re1 g5 (13... Rc8 $15) 14. Nd3 $11 c5 15. Nxc5 Nxc5 16. dxc5 {Threatening b4.} Bxc5 17. b4 Bf8 18. Ne2 Bg7 19. Nd4 Bg6 20. Bb2 Nd7 {[%cal Bf6d7,Bd7e5,Be5c4][%mdl 32]} 21. Qb3 (21. f4 $5 {[%cal Rf4f5]}) 21... Ne5 22. Rad1 {Against Nd3} Nc4 23. Ba1 (23. Bc1 $15) 23... Qb6 ({Better is} 23... a5 $17 {Hoping for ...axb4.} 24. Bf1 a4) 24. Bh3 {[#]} (24. Bf1 $15) 24... a5 $1 $17 {[%cal Ba7a5,Ba5a4][%mdl 32] Black is more active.} 25. b5 Re7 (25... a4 $19 26. Qc3 Qc5) 26. Kg2 $2 {This costs White the game.} (26. Bf5 $17 {was worth a try.}) 26... a4 $19 27. Qc3 Rae8 28. e4 Nd6 {[%cal Rd5e4]} ({Stronger than} 28... f5 29. exf5 Bxd4 30. Qxd4 Qxd4 31. Bxd4 Rxe1 32. Rxe1 $17) 29. Qb4 dxe4 30. Qxa4 $2 {[#]} (30. f4 gxf4 31. gxf4) 30... exf3+ 31. Nxf3 Rxe1 32. Nxe1 Re2+ {Black mates.} 33. Kh1 Qf2 {[%csl Ge2][%cal Rf2h2]} 34. Ng2 Bxa1 35. Rxa1 Be4 36. Rg1 Bxg2+ 37. Bxg2 Re1 {Weighted Error Value: White=0.73/Black=0.10 (very precise)} 0-1

[Event "Leca Open 2022"]
[Site "Leca da Palmeira"]
[Date "2022.08.03"]
[Round "6.12"]
[White "Bhagat, Kush"]
[Black "Touzane, Olivier"]
[Result "1/2-1/2"]
[ECO "A80"]
[WhiteElo "1813"]
[BlackElo "2266"]
[Annotator "TA"]
[PlyCount "112"]
[EventDate "2022.08.02"]
[EventType "swiss"]
[EventCountry "POR"]
[SourceTitle "playchess.com"]
[Source "ChessBase"]
[SourceQuality "1"]
[TimeControl "5400+30"]

{[%evp 9,112,60,68,60,71,22,33,24,37,24,78,69,66,62,85,45,53,34,105,99,92,95,128,56,107,34,123,0,0,0,0,0,0,0,105,31,37,44,36,31,27,35,33,40,51,29,36,24,29,0,0,0,0,-8,0,0,0,0,0,0,0,-80,0,0,0,0,0,0,0,0,0,0,0,0,0,0,0,0,0,0,0,0,0,0,0,0,259,247,232,0,0,0,0,0,0,0,0,0,11,0,0,0,0,0,0]} 1. d4 {[%emt 0:00:19]} f5 {[%emt 0:02:02]} 2. Bf4 {[%emt 0:00:22]} Nf6 {[%emt 0:00:58]} 3. e3 {[%emt 0:00:10]} d5 {[%emt 0:02:00]} 4. Nf3 {[%emt 0:00:11]} e6 {[%emt 0:00:18]} 5. Bd3 {[%emt 0:00:47]} Be7 {[%emt 0:00:20]} 6. h3 {[%emt 0:00:14] A80: Dutch Defence: Unusual White second moves.} c6 {[%emt 0:03:13]} 7. Ne5 {[%emt 0:07:15]} (7. O-O $16) 7... Nbd7 {[%emt 0:00:32]} 8. Nd2 {[%emt 0:04:17] [#] White is slightly better.} Qb6 $146 {[%emt 0:03:44]} ({Predecessor:} 8... O-O 9. c3 Nxe5 10. Bxe5 b6 11. Nf1 Bb7 12. Bxf6 Bxf6 13. f4 Qe8 14. Qf3 c5 {1-0 (51) Papidakis,G (1652)-Gorskiy,A (1883) Heraklion 2018}) 9. Rb1 {[%emt 0:21:02]} g6 {[%emt 0:04:12]} (9... O-O $11) 10. O-O $16 {[%emt 0:22:43]} O-O {[%emt 0:01:54]} 11. c4 {[%emt 0:03:10][%cal Ob2b4]} Qd8 {[%emt 0:05:06]} 12. b4 {[%emt 0:05:53]} dxc4 {[%emt 0:05:45]} 13. Bxc4 {[%emt 0:04:20]} Nb6 {[%emt 0:00:10]} (13... Nxe5 $14 14. Bxe5 b5) 14. Qb3 {[%emt 0:07:38]} Nxc4 {[%emt 0:04:08]} 15. Qxc4 {[%emt 0:00:19]} (15. Ndxc4 {looks sharper.} Nd5 16. Bh6 Re8 17. e4) 15... a6 {[%emt 0:01:06]} 16. Bh2 {[%emt 0:01:31] White is much more active. The black rooks are badly placed.} (16. Bh6 $16) 16... Nd5 {[%emt 0:01:06]} (16... a5 $1 $14) 17. Rfe1 {[%emt 0:05:41]} (17. e4 $1 $16 {[%cal Re4d5]}) 17... Bd7 {[%emt 0:03:54]} ({Better is} 17... a5 $1 $14) 18. Nxd7 {[%emt 0:01:02]} (18. e4 $16) 18... Qxd7 $11 {[%emt 0:00:12]} 19. Nf3 {[%emt 0:01:19]} b5 {[%emt 0:01:34]} 20. Ne5 {[%emt 0:00:49][%csl LRc6,LRd7]} bxc4 {[%emt 0:00:45]} 21. Nxd7 {[%emt 0:00:02]} Bxb4 {[%emt 0:05:17]} (21... Rfd8 $11 {remains equal.} 22. Nc5 a5 23. Nxe6 Rdc8 24. bxa5 Rxa5) 22. Rxb4 {[%emt 0:01:02]} ({Much worse is} 22. Nxf8 $6 Bxe1 23. Nxe6 Bd2 $11) (22. Rec1 $1 $16 Rfd8 23. Nb6 $1 {[%mdl 512]}) 22... Nxb4 $14 {[%emt 0:00:09]} 23. Nxf8 {[%emt 0:00:02]} Nd3 {[%emt 0:01:01] [#]} 24. Re2 {[%emt 0:00:08]} Kxf8 {[%emt 0:01:48][%mdl 4096] Endgame KRB-KRN} 25. Rc2 {[%emt 0:00:14]} a5 {[%emt 0:05:24]} 26. Rxc4 {[%emt 0:00:31]} Ra6 $1 {[%emt 0:00:05]} 27. Rc3 {[%emt 0:04:20]} Nb4 {[%emt 0:01:18]} 28. a3 {[%emt 0:00:05]} Nd5 {[%emt 0:00:13]} 29. Rb3 {[%emt 0:00:01]} Rb6 {[%emt 0:02:11]} 30. Rxb6 {[%emt 0:00:07]} Nxb6 $11 {[%emt 0:00:04] KB-KN} 31. Bd6+ {[%emt 0:01:06]} Ke8 {[%emt 0:00:26]} 32. Kf1 {[%emt 0:00:31]} Kd7 {[%emt 0:00:55]} 33. Bc5 {[%emt 0:00:35]} Na4 {[%emt 0:00:06]} 34. Ke2 {[%emt 0:02:18]} e5 {[%emt 0:01:16]} 35. Ba7 {[%emt 0:02:53] [#]} (35. Kd3 $1 $11) 35... exd4 {[%emt 0:03:26]} ({Black should play} 35... e4 $1 $17) 36. Bxd4 {[%emt 0:02:22]} c5 {[%emt 0:01:33]} 37. Bf6 {[%emt 0:01:16]} Nb6 {[%emt 0:03:46]} 38. Kd3 {[%emt 0:01:53]} a4 {[%emt 0:01:42]} 39. f3 {[%emt 0:00:32]} Nd5 {[%emt 0:01:58]} 40. Bg5 {[%emt 0:00:17]} Kc6 {[%emt 0:00:48]} 41. e4 {[%emt 0:00:19]} Nc7 {[%emt 0:00:55]} 42. g4 {[%emt 0:00:59]} fxe4+ {[%emt 0:00:42]} 43. fxe4 {[%emt 0:00:06]} Kb5 {[%emt 0:03:31]} 44. Be3 {[%emt 0:00:50]} Na8 {[%emt 0:00:59]} 45. e5 {[%emt 0:00:39]} Nc7 {[%emt 0:01:02]} 46. Bf2 {[%emt 0:00:34]} Nd5 {[%emt 0:03:10]} 47. h4 {[%emt 0:00:39]} c4+ $2 {[%emt 0:00:57][%mdl 8192]} (47... Kc6 $11) 48. Kd4 $18 {[%emt 0:00:26]} Nc7 {[%emt 0:07:06]} 49. Kc3 $2 {[%emt 0:00:31]} (49. Be1 $18) 49... h5 {[%emt 0:01:28] The position is equal.} 50. gxh5 {[%emt 0:00:18]} gxh5 {[%emt 0:00:06]} 51. Kd4 {[%emt 0:00:14] Threatens to win with Bg3.} Ne6+ {[%emt 0:00:27]} 52. Kc3 {[%emt 0:00:47]} Nf4 {[%emt 0:00:56]} 53. Kd4 {[%emt 0:00:42]} Ne6+ {[%emt 0:01:30]} 54. Kc3 {[%emt 0:00:08]} Nd8 {[%emt 0:02:49]} 55. Be3 {[%emt 0:00:36] Hoping for Kd4.} Ne6 {[%emt 0:00:14]} 56. Bf2 {[%emt 0:00:05]} Nd8 {Weighted Error Value: White=0.20 (precise) /Black=0.27 (precise)} 1/2-1/2